[Event "Sardinia World Festival-A 2024"]
[Site "Orosei"]
[Date "2024.04.30"]
[Round "4.6"]
[White "Sjugirov, Sanan"]
[Black "Velten, Paul"]
[Result "0-1"]
[ECO "C02"]
[WhiteElo "2689"]
[BlackElo "2481"]
[Annotator "TA"]
[PlyCount "118"]
[EventDate "2024.04.26"]
[EventType "swiss"]
[EventCountry "ITA"]
[SourceTitle "playchess.com"]
[Source "ChessBase"]
[SourceQuality "1"]
[TimeControl "40/5400+30:1800+30"]

{[%evp 16,118,0,0,0,0,-7,0,29,0,0,0,-5,0,0,-18,31,0,0,0,0,-8,23,0,38,25,37,0,0,0,20,0,0,1,19,2,24,0,6,0,0,-156,-196,-204,-73,-104,-93,-96,0,-90,-25,-256,-175,-185,-172,-181,-166,-188,-181,-185,-198,-174,-184,-191,-165,-384,-372,-375,-319,-361,-352,-1106,-1119,-29966,-29971,-29944,-6720,-5477,-586,-525,-433,-468,-460,-444,-419,-451,-449,-986,-716,-764,-1260,-1200,-869,-1141,-1124,-29974,-29977,-29976,-29978,-29977,-29978,-29978,-29979,-29977,-29977]} 1. e4 {[%emt 0:00:17]} e6 {[%emt 0:00:18]} 2. d4 {[%emt 0:01:07]} d5 {[%emt 0:00:49]} 3. e5 {[%emt 0:01:10]} c5 {[%emt 0:01:17]} 4. c3 {[%emt 0:00:16]} Nc6 {[%emt 0:00:51]} 5. Nf3 {[%emt 0:00:14]} Bd7 {[%emt 0:01:11]} 6. Be2 {[%emt 0:01:11]} Nge7 {[%emt 0:01:39]} 7. O-O {[%emt 0:02:04]} cxd4 {[%emt 0:02:28]} 8. cxd4 {[%emt 0:00:17]} Nf5 {[%emt 0:00:36]} 9. Nc3 {[%emt 0:07:22]} a6 {[%emt 0:03:12]} 10. Kh1 {[%emt 0:42:39]} Rc8 {[%emt 0:06:37]} 11. Rb1 {[%emt 0:12:00]} Be7 {[%emt 0:07:52] The position is equal.} 12. g4 {[%emt 0:04:20]} Nh4 {[%emt 0:02:33]} 13. Nxh4 {[%emt 0:00:16]} Bxh4 {[%emt 0:00:19]} 14. f4 {[%emt 0:00:30][%cal Bf2f4,Bf4f5][%mdl 32]} Be7 {[%emt 0:00:41]} 15. Be3 {[%emt 0:02:05]} Na5 {[%emt 0:03:50]} (15... O-O $11) 16. f5 {[%emt 0:04:21]} Nc4 {[%emt 0:02:41]} 17. Bxc4 {[%emt 0:00:18]} (17. Qd3 {looks sharper.} O-O 18. f6 gxf6 19. exf6 Bxf6 20. Bh6) 17... Rxc4 {[%emt 0:03:13]} 18. Qf3 {[%emt 0:00:52]} Qa5 {[%emt 0:02:24]} 19. a3 {[%emt 0:04:29]} Kd8 {[%emt 0:10:13]} 20. fxe6 {[%emt 0:01:32]} Bxe6 {[%emt 0:06:32]} 21. Ne2 {[%emt 0:00:03]} Kd7 {[%emt 0:03:17]} 22. Nf4 {[%emt 0:00:05]} Rf8 {[%emt 0:06:34]} 23. Rf2 {[%emt 0:02:52]} Qb5 {[%emt 0:01:03]} 24. Rbf1 {[%emt 0:00:29]} Rcc8 {[%emt 0:01:14]} 25. Qd1 {[%emt 0:03:04]} h6 {[%emt 0:02:08]} 26. h3 {[%emt 0:00:56]} Kc7 {[%emt 0:02:05]} 27. Nh5 {[%emt 0:02:12]} Rg8 {[%emt 0:01:35]} 28. Rxf7 $2 {[%emt 0:00:54]} (28. Qe2 $11) 28... Bxf7 $17 {[%emt 0:00:08]} 29. Rxf7 {[%emt 0:00:02]} Rcf8 {[%emt 0:00:37]} (29... Rgf8 $1 $19 {[%cal Rf8f7] and Black stays clearly on top.} 30. a4 (30. Rxe7+ $2 Kd8 $19) 30... Qxb2 31. Rxf8 (31. Rxe7+ Kb8 $19) 31... Bxf8) 30. Qf3 {[%emt 0:04:54]} Kb8 {[%emt 0:01:31]} 31. e6 {[%emt 0:00:21]} (31. Nxg7 $2 Rxf7 32. Nf5 (32. Qxf7 $2 Rf8 $19) 32... Qxb2 $19) 31... g5 {[%emt 0:14:41]} (31... Ka7 $1 $17 32. Nf4 (32. Nxg7 $2 Rxf7 33. exf7 Rxg7 $19) 32... Bd6 (32... Rxf7 33. exf7 Rd8 34. Ng6 $11)) 32. Bg1 {[%emt 0:00:03]} (32. Qg3+ $11 Ka7 33. Rxe7 Rf1+ 34. Kh2) 32... Ka8 {[%emt 0:01:40]} ({Black should try} 32... Ka7 $1 $17 {Hoping for ...Rxf7.} 33. a4 Qc6) 33. Ng3 $2 {[%emt 0:00:04] Now White is beyond hope.} (33. Nf6 Bxf6 34. Qxf6 Rc8 $17) (33. Qe3 $11 Bd8 34. Ng7 Qxb2 35. Nf5) 33... Rxf7 {[%emt 0:00:56]} 34. Qxf7 {[%emt 0:00:33]} (34. exf7 Rf8 35. b4 Qd7 $15) 34... Re8 {[%emt 0:03:50][%cal Oe7d6] And now ...Bd6! would win.} 35. Nf5 {[%emt 0:00:40] [#]} Bf8 {[%emt 0:00:06]} 36. a4 {[%emt 0:02:26]} Qxa4 {[%emt 0:02:22] White must now prevent ...Qb5.} 37. e7 {[%emt 0:00:03] [#]} Bxe7 {[%emt 0:00:07][%mdl 512]} 38. Ng7 {[%emt 0:00:03]} (38. Nxe7 $2 {is the wrong capture.} Qd7 39. Qf5 Qxe7 $19 (39... Rxe7 $2 40. Qxd7 Rxd7 41. Kg2 $19)) 38... Rc8 {[%emt 0:00:35]} 39. Qxe7 {[%emt 0:00:23]} Qb3 {[%emt 0:00:23]} 40. Qe3 {[%emt 0:02:31]} (40. Kg2 {only move.}) 40... Qxb2 $19 {[%emt 0:00:13]} 41. Qe5 {[%emt 0:13:11]} Rc3 {[%emt 0:02:15]} 42. Nf5 {[%emt 0:01:04]} Qc2 {[%emt 0:03:36] Strongly threatening ...Qd1.} ({Weaker is} 42... Rxh3+ 43. Bh2 Ka7 44. Qb8+ Kb6 45. Qc7+ Ka7 46. Qb8+ Kb6 47. Qc7+ Ka7 48. Qb8+ $11) 43. Ng3 $2 {[%emt 0:01:22]} (43. Ne3 Qe4+ 44. Kh2) 43... Qd3 {[%emt 0:00:34] ( -> ...Qf3+). Active counter play!} 44. Bf2 {[%emt 0:03:27]} Qf3+ {[%emt 0:00:24]} 45. Kg1 {[%emt 0:00:06]} Rc1+ {[%emt 0:00:24]} 46. Be1 {[%emt 0:00:54]} Ka7 {[%emt 0:00:44]} (46... Rc2 $142 {[%csl Gc2][%cal Rf3g2]} 47. Ne2 Rxe2 (47... Qxe2 $2 48. Qxe2 Rxe2 49. Ba5 $19)) 47. Nf1 {[%emt 0:04:34]} Qxh3 {[%emt 0:01:44]} 48. Qe2 {[%emt 0:00:08]} Qb3 {[%emt 0:04:23]} 49. Ne3 {[%emt 0:00:33]} Ra1 {[%emt 0:01:06]} 50. Ng2 {[%emt 0:00:49]} a5 {[%emt 0:00:38]} 51. Qe5 {[%emt 0:01:27]} (51. Qe7 $142 Qc2 52. Qe6) 51... a4 {[%emt 0:01:20] Threatens to win with ...Rc1.} 52. Kh2 {[%emt 0:00:44]} Rc1 {[%emt 0:02:02]} 53. Bg3 {[%emt 0:01:32]} Rc8 {[%emt 0:00:40] ...a3 would now be deadly.} 54. Qe1 {[%emt 0:01:11]} Rc3 {[%emt 0:01:58] ...a3 is the strong threat.} 55. Qe5 {[%emt 0:04:05] [#]} Rxg3 $1 {[%emt 0:02:10][%mdl 512] Black mates.} 56. Qxg3 {[%emt 0:00:04]} Qxg3+ {[%emt 0:00:55]} 57. Kxg3 {[%emt 0:00:02] [#]} a3 $1 {[%emt 0:00:37]} 58. Ne3 {[%emt 0:00:06]} a2 {[%emt 0:00:04]} 59. Nc2 {[%emt 0:00:03]} Kb6 {[%emt 0:00:25] Weighted Error Value: White=0.75/Black=0.46.  Loses game:     	White=1     	---        Mistake:       	White=5     	Black=4      Inaccurate:     	White=5     	Black=4      OK:         	White=10    	Black=16     Best:        	White=4     	Black=2      Brilliant:      	---       	Black=1} 0-1

[Event "Sardinia World Festival-A 2024"]
[Site "Orosei"]
[Date "2024.04.30"]
[Round "4.7"]
[White "Lagarde, Maxime"]
[Black "Zhalmakhanov, Ramazan"]
[Result "1/2-1/2"]
[ECO "C79"]
[WhiteElo "2640"]
[BlackElo "2490"]
[Annotator "TA"]
[PlyCount "31"]
[EventDate "2024.04.26"]
[EventType "swiss"]
[EventCountry "ITA"]
[SourceTitle "playchess.com"]
[Source "ChessBase"]
[SourceQuality "1"]
[TimeControl "40/5400+30:1800+30"]

{[%evp 10,31,44,23,39,31,37,16,22,0,0,-16,-33,-23,-17,-34,-20,-26,-17,-27,-25,-22,-24,-24]} 1. e4 {[%emt 0:02:33]} e5 {[%emt 0:00:15]} 2. Nf3 {[%emt 0:00:21]} Nc6 {[%emt 0:00:12]} 3. Bb5 {[%emt 0:00:04]} a6 {[%emt 0:00:11]} 4. Ba4 {[%emt 0:00:06]} Nf6 {[%emt 0:00:09]} 5. O-O {[%emt 0:00:18]} d6 {[%emt 0:00:07]} 6. Re1 {[%emt 0:05:41]} Bd7 {[%emt 0:01:17]} 7. c4 {[%emt 0:00:28]} Bg4 {[%emt 0:27:28]} 8. d4 {[%emt 0:05:38] d5 would now be deadly.} Nd7 {[%emt 0:08:27] The position is equal.} 9. d5 {[%emt 0:06:38]} Nd4 {[%emt 0:01:44]} 10. Be3 {[%emt 0:00:51]} Nxf3+ {[%emt 0:04:19]} 11. gxf3 {[%emt 0:00:05]} Bh5 {[%emt 0:00:05]} 12. Nd2 {[%emt 0:02:34][%cal Bb1d2,Bd2f1,Bf1g3][%mdl 32]} Be7 {[%emt 0:02:12]} 13. Nf1 {[%emt 0:02:50]} O-O {[%emt 0:02:13]} 14. Ng3 {[%emt 0:00:23]} Bg6 {[%emt 0:00:02]} 15. Kh1 {[%emt 0:03:59]} Nf6 {[%emt 0:02:57]} 16. Bc2 {[%emt 0:19:37] White did not feel at home in the position after the opening.   Weighted Error Value: White=0.11 (very precise) /Black=0.02 (flawless) .  OK:         	White=3     	Black=8} 1/2-1/2

[Event "Sardinia World Festival-A 2024"]
[Site "Orosei"]
[Date "2024.04.30"]
[Round "4.8"]
[White "Dardha, Daniel"]
[Black "Agmanov, Zhandos"]
[Result "1-0"]
[ECO "A17"]
[WhiteElo "2630"]
[BlackElo "2458"]
[Annotator "TA"]
[PlyCount "63"]
[EventDate "2024.04.26"]
[EventType "swiss"]
[EventCountry "ITA"]
[SourceTitle "playchess.com"]
[Source "ChessBase"]
[SourceQuality "1"]
[TimeControl "40/5400+30:1800+30"]

{[%evp 9,63,0,0,0,0,0,0,0,0,0,0,0,5,7,0,-12,7,-2,17,16,16,13,19,10,21,0,-8,-2,0,-18,-20,-15,26,0,0,-37,-24,-50,0,0,0,0,-6,0,0,0,49,31,137,128,481,504,538,533,541,322]} 1. Nf3 {[%emt 0:02:12]} Nf6 {[%emt 0:02:24]} 2. c4 {[%emt 0:00:19]} e6 {[%emt 0:00:15]} 3. Nc3 {[%emt 0:01:39]} d5 {[%emt 0:00:32]} 4. e3 {[%emt 0:00:08]} Bd6 {[%emt 0:01:30]} 5. b3 {[%emt 0:00:43]} O-O {[%emt 0:01:57]} 6. Bb2 {[%emt 0:00:07]} Re8 {[%emt 0:03:36]} 7. Nb5 {[%emt 0:11:56]} Be7 {[%emt 0:00:32]} 8. Be5 {[%emt 0:00:27] The position is equal.} Na6 {[%emt 0:00:17]} 9. h3 {[%emt 0:02:43]} c6 {[%emt 0:06:25]} 10. Nc3 {[%emt 0:01:38]} Nc5 {[%emt 0:08:36]} 11. Qc2 {[%emt 0:07:59]} Nfe4 {[%emt 0:09:16]} 12. d3 {[%emt 0:04:11]} Nxc3 {[%emt 0:03:47]} 13. Bxc3 {[%emt 0:00:08]} a5 {[%emt 0:05:48]} 14. Be2 {[%emt 0:02:53]} b5 {[%emt 0:05:11]} 15. O-O {[%emt 0:01:00]} b4 {[%emt 0:03:45]} 16. Bb2 {[%emt 0:04:35]} a4 {[%emt 0:02:02]} 17. Bd4 {[%emt 0:06:07]} Nd7 {[%emt 0:11:15]} 18. bxa4 {[%emt 0:04:32]} Qa5 {[%emt 0:04:29]} 19. cxd5 {[%emt 0:05:48]} cxd5 {[%emt 0:00:35]} 20. Rfc1 {[%emt 0:00:30]} Bd6 {[%emt 0:13:57]} 21. e4 {[%emt 0:02:58]} Qxa4 {[%emt 0:08:28]} 22. Qd2 {[%emt 0:09:02]} e5 {[%emt 0:02:26]} 23. Bb2 {[%emt 0:00:44]} Bb7 {[%emt 0:00:53]} (23... d4 $15) 24. d4 $11 {[%emt 0:04:08]} dxe4 {[%emt 0:01:52]} 25. Nxe5 {[%emt 0:00:06]} Bd5 {[%emt 0:02:38]} 26. Nc4 {[%emt 0:03:54] Prevents Nb6} Bf8 {[%emt 0:00:27]} 27. Qg5 {[%emt 0:01:03]} Bb7 {[%emt 0:00:33]} (27... Qb5 $11 {should be considered.}) 28. d5 {[%emt 0:01:38] aiming for Ne3.} h6 {[%emt 0:00:20]} (28... Qb5 $14) 29. Qf5 $16 {[%emt 0:00:21] And now Bh5 would win.} Rad8 $2 {[%emt 0:00:42][%mdl 8192] [#]} (29... Be7 $16 {is more resistant.} 30. d6 (30. Qxe4 Bf6 $14) 30... g6) 30. Bh5 $1 $18 {[%emt 0:00:59] White is clearly winning.} Bxd5 {[%emt 0:00:27]} 31. Qxd5 {[%emt 0:00:25]} Ne5 {[%emt 0:00:04]} 32. Qb7 {[%emt 0:03:00] Weighted Error Value: White=0.06 (flawless) /Black=0.32.  Loses game:     	---       	Black=1      Mistake:       	---       	Black=3      Inaccurate:     	White=4     	Black=1      OK:         	White=12    	Black=10     Best:        	White=1     	---        Strong:       	White=1     	---} 1-0

[Event "Sardinia World Festival-A 2024"]
[Site "Orosei"]
[Date "2024.04.30"]
[Round "4.9"]
[White "Bronstein, Or"]
[Black "Chigaev, Maksim"]
[Result "0-1"]
[ECO "E44"]
[WhiteElo "2458"]
[BlackElo "2621"]
[Annotator "RC"]
[PlyCount "149"]
[EventDate "2024.04.26"]
[EventType "swiss"]
[EventCountry "ITA"]
[SourceTitle "playchess.com"]
[Source "ChessBase"]
[SourceQuality "1"]
[TimeControl "40/5400+30:1800+30"]

1. d4 {[%emt 0:04:48]} Nf6 {[%emt 0:00:13]} 2. c4 {[%emt 0:00:12]} e6 {[%emt 0:00:06]} 3. Nc3 {[%emt 0:01:39]} Bb4 {[%emt 0:00:17]} 4. e3 {[%emt 0:00:09]} b6 {[%emt 0:02:01]} 5. Nge2 {[%emt 0:02:30]} Ne4 {[%emt 0:10:50]} 6. Bd2 {[%emt 0:00:45]} Nxd2 {[%emt 0:04:16]} 7. Qxd2 {[%emt 0:00:21]} Bb7 {[%emt 0:00:12]} 8. a3 {[%emt 0:00:23]} Be7 {[%emt 0:01:08]} 9. d5 {[%emt 0:01:00]} a5 {[%emt 0:02:03]} 10. g3 {[%emt 0:10:24]} O-O {[%emt 0:13:45]} 11. Bg2 {[%emt 0:02:51]} e5 {[%emt 0:00:48]} 12. Qc2 {[%emt 0:05:14]} d6 {[%emt 0:00:40]} 13. h4 {[%emt 0:02:28]} Nd7 {[%emt 0:00:27]} 14. O-O-O {[%emt 0:03:47]} Nc5 {[%emt 0:00:38]} 15. g4 {[%emt 0:03:33]} a4 {[%emt 0:18:00]} 16. g5 {[%emt 0:03:27]} f5 {[%emt 0:16:57]} 17. f4 {[%emt 0:03:53]} Ra5 {[%emt 0:01:39]} 18. Kb1 {[%emt 0:08:15]} Qe8 {[%emt 0:07:50]} 19. Nb5 {[%emt 0:12:24]} Bd8 {[%emt 0:01:16]} 20. Ng3 {[%emt 0:01:41]} Ba6 {[%emt 0:14:00]} 21. Bf1 {[%emt 0:00:19]} Bc8 {[%emt 0:02:27]} 22. Bh3 {[%emt 0:01:06]} g6 {[%emt 0:00:33]} 23. h5 {[%emt 0:02:19]} exf4 {[%emt 0:00:04]} 24. exf4 {[%emt 0:02:49]} Qe3 {[%emt 0:00:03]} 25. Ne2 {[%emt 0:15:14]} Qe4 {[%emt 0:01:14]} 26. Ned4 {[%emt 0:02:16]} Bd7 {[%emt 0:00:10]} 27. Bg2 {[%emt 0:01:30]} Qxc2+ {[%emt 0:01:37]} 28. Kxc2 {[%emt 0:00:02]} Nb3 {[%emt 0:00:39]} 29. Ne6 {[%emt 0:01:55]} Bxe6 {[%emt 0:00:29]} 30. dxe6 {[%emt 0:00:01]} Kg7 {[%emt 0:00:26]} 31. hxg6 {[%emt 0:02:55]} hxg6 {[%emt 0:00:37]} 32. Rh6 {[%emt 0:01:50]} Rh8 {[%emt 0:00:21]} 33. Rxh8 {[%emt 0:00:58]} Kxh8 {[%emt 0:00:01]} 34. Nxc7 {[%emt 0:01:54]} Rc5 {[%emt 0:00:03]} 35. Nd5 {[%emt 0:01:27]} Rxc4+ {[%emt 0:00:01]} 36. Kb1 {[%emt 0:00:32]} Kg7 {[%emt 0:00:22]} 37. e7 {[%emt 0:01:01]} Bxe7 {[%emt 0:00:01]} 38. Nxe7 {[%emt 0:00:02]} Rxf4 {[%emt 0:00:23]} 39. Bd5 {[%emt 0:01:06]} Rg4 {[%emt 0:00:21]} 40. Nc8 {[%emt 0:00:15]} Rxg5 {[%emt 0:01:01]} 41. Nxb6 {[%emt 0:02:54]} Nc5 {[%emt 0:02:53]} 42. Bc6 {[%emt 0:02:38]} Rg4 {[%emt 0:02:30]} 43. Rxd6 {[%emt 0:01:02]} g5 {[%emt 0:00:19]} 44. Rd5 {[%emt 0:04:22]} Rg1+ {[%emt 0:00:15]} 45. Ka2 {[%emt 0:02:10]} Nb3 {[%emt 0:01:50]} 46. Bxa4 {[%emt 0:00:32]} Nc1+ {[%emt 0:00:05]} 47. Kb1 {[%emt 0:00:04]} g4 {[%emt 0:00:26]} 48. Kc2 {[%emt 0:07:57]} f4 {[%emt 0:01:18]} 49. Rg5+ {[%emt 0:08:40]} Kh6 {[%emt 0:00:32]} 50. Rg8 {[%emt 0:00:30]} Kh7 {[%emt 0:04:14]} 51. Rf8 {[%emt 0:02:07]} f3 {[%emt 0:00:32]} 52. Nd5 {[%emt 0:02:33]} Ne2 {[%emt 0:05:43]} 53. Kd2 {[%emt 0:00:33]} Kg7 {[%emt 0:02:30]} 54. Rf5 {[%emt 0:00:44]} Ng3 {[%emt 0:06:26]} 55. Rf4 {[%emt 0:01:03]} Nh5 {[%emt 0:00:50]} 56. Rd4 {[%emt 0:00:40]} g3 {[%emt 0:01:53]} 57. Ne3 {[%emt 0:00:11]} g2 {[%emt 0:03:35]} 58. Rg4+ {[%emt 0:00:08]} Kh6 {[%emt 0:00:12]} 59. Bc6 {[%emt 0:01:16]} Nf6 {[%emt 0:01:52]} 60. Nf5+ {[%emt 0:00:37]} Kh5 {[%emt 0:00:05]} 61. Rg3 {[%emt 0:00:18]} Rf1 {[%emt 0:00:20]} 62. Ng7+ {[%emt 0:00:33]} Kh6 {[%emt 0:00:32]} 63. Nf5+ {[%emt 0:00:32]} Kh7 {[%emt 0:00:17]} 64. Rh3+ {[%emt 0:00:36]} Nh5 {[%emt 0:02:48]} 65. Rxh5+ {[%emt 0:00:33]} Kg6 {[%emt 0:00:07]} 66. Nh4+ {[%emt 0:00:29]} Kxh5 {[%emt 0:00:08]} 67. Nxf3 {[%emt 0:00:22]} Kh6 {[%emt 0:00:11]} 68. Ng1 {[%emt 0:00:39]} Rxg1 {[%emt 0:00:10]} 69. Bxg2 {[%emt 0:00:31]} Rxg2+ {[%emt 0:00:07]} 70. Kc3 {[%emt 0:00:01]} Rg4 {[%emt 0:01:04]} 71. b4 {[%emt 0:00:21]} Kg6 {[%emt 0:00:11]} 72. a4 {[%emt 0:00:07]} Kf6 {[%emt 0:00:07]} 73. a5 {[%emt 0:00:04]} Ke6 {[%emt 0:00:15]} 74. Kb3 {[%emt 0:01:19]} Kd6 {[%emt 0:00:07]} 75. Ka4 {[%emt 0:00:30]} 0-1

[Event "Sardinia World Festival-A 2024"]
[Site "Orosei"]
[Date "2024.04.30"]
[Round "4.10"]
[White "Moroni, Luca Jr"]
[Black "Aghayev, Miragha"]
[Result "1-0"]
[ECO "A13"]
[WhiteElo "2580"]
[BlackElo "2424"]
[Annotator "TA"]
[PlyCount "67"]
[EventDate "2024.04.26"]
[EventType "swiss"]
[EventCountry "ITA"]
[SourceTitle "playchess.com"]
[Source "ChessBase"]
[SourceQuality "1"]
[TimeControl "40/5400+30:1800+30"]

{[%evp 9,67,10,14,11,10,0,0,0,0,-8,0,0,-5,-8,11,22,14,4,0,0,0,-18,-6,0,-6,-4,-9,-29,0,-14,0,-23,0,0,2,0,0,-8,0,0,8,3,104,110,125,0,0,0,89,118,723,720,748,747,756,744,743,754,752,731]} 1. c4 {[%emt 0:00:01]} e6 {[%emt 0:04:50]} 2. Nf3 {[%emt 0:00:25]} Nf6 {[%emt 0:00:23]} 3. b3 {[%emt 0:00:24]} d5 {[%emt 0:00:46]} 4. Bb2 {[%emt 0:00:17]} Bd6 {[%emt 0:02:37]} 5. e3 {[%emt 0:00:27]} b6 {[%emt 0:01:43]} 6. Nc3 {[%emt 0:01:44]} a6 {[%emt 0:02:35]} 7. Qc2 {[%emt 0:03:18]} Bb7 {[%emt 0:07:29]} 8. Be2 {[%emt 0:09:46] The position is equal.} Nbd7 {[%emt 0:01:08]} 9. a4 {[%emt 0:02:34]} c5 {[%emt 0:07:19]} 10. O-O {[%emt 0:04:42]} O-O {[%emt 0:01:09]} 11. cxd5 {[%emt 0:10:42]} Nxd5 {[%emt 0:06:51]} 12. Nxd5 {[%emt 0:07:02]} Bxd5 {[%emt 0:00:59]} 13. Rfd1 {[%emt 0:05:53]} Qe7 {[%emt 0:04:17]} 14. d4 {[%emt 0:08:16]} cxd4 {[%emt 0:04:48]} 15. Rxd4 {[%emt 0:02:27]} Rfc8 {[%emt 0:05:07]} 16. Qd1 {[%emt 0:02:41]} Nf6 {[%emt 0:08:51]} 17. Qd3 {[%emt 0:05:53] [#] e4 is the strong threat.} Rd8 {[%emt 0:05:48]} 18. Qc2 {[%emt 0:12:44] aiming for e4.} Rdc8 {[%emt 0:01:45]} 19. Qd1 {[%emt 0:01:07]} Rd8 {[%emt 0:08:48]} 20. Qf1 {[%emt 0:05:51]} Ne4 {[%emt 0:10:18]} 21. Bc4 {[%emt 0:06:32]} Bb7 {[%emt 0:00:19]} 22. Qb1 {[%emt 0:01:10]} Ng5 {[%emt 0:00:48]} 23. Ne1 {[%emt 0:03:28]} h6 {[%emt 0:07:43]} 24. Rg4 {[%emt 0:01:42]} e5 {[%emt 0:00:05]} (24... h5 $5 25. Rd4 Rac8 $11) 25. h4 $1 {[%emt 0:00:48]} Nh7 {[%emt 0:00:10]} (25... Ne6 $11) 26. Qg6 $16 {[%emt 0:02:30][%csl Gg4][%cal Rg6g7]} Qf6 {[%emt 0:00:05][%cal Ob6b5] Hoping for ...b5!} 27. Qb1 {[%emt 0:01:03] White is much more active.} Qe7 {[%emt 0:00:19]} 28. Qg6 $36 {[%emt 0:00:03][%csl Gg4][%cal Rg6g7][%mdl 2048] White is more active.} Qf6 {[%emt 0:00:04][%cal Ob6b5] [#] White must now prevent ...b5!} 29. Qh5 $1 {[%emt 0:00:27]} Rf8 $2 {[%emt 0:02:40][%mdl 8192] A mistake that costs the game.} (29... b5 $16 30. axb5 (30. Rf4 bxc4 31. Rxf6 Nxf6 $14) 30... axb5) 30. Rg6 $18 {[%emt 0:00:19] White is clearly winning.} b5 {[%emt 0:03:18]} 31. axb5 {[%emt 0:00:28]} axb5 {[%emt 0:00:07]} 32. Rxa8 {[%emt 0:00:25]} (32. Qxh6 bxc4 33. Rxf6 Rxa1 34. Bxa1 (34. Rxd6 $2 Rxe1+ 35. Kh2 gxh6 $19) 34... Nxf6 $16) 32... Bxa8 {[%emt 0:00:23]} 33. Rxf6 {[%emt 0:00:18]} ({Not} 33. Qxh6 bxc4 34. Rxf6 c3 35. Bxc3 (35. Rxd6 $2 cxb2 36. Rd1 gxh6 $19) 35... Nxf6 $18) 33... Nxf6 {[%emt 0:00:05]} 34. Qd1 {[%emt 0:00:08] Weighted Error Value: White=0.09 (flawless) /Black=0.12 (very precise) .  Loses game:     	---       	Black=1      Mistake:       	---       	Black=1      Inaccurate:     	---       	Black=1      OK:         	White=7     	Black=12     Best:        	White=1     	Black=1      Strong:       	White=2     	---} 1-0